bitfinex-derivatives/quotes_SOLF0:USTF0_20251209
["timestamp","ask_amount","ask_price","bid_price","bid_amount"]
[1765290077274,18.38539733,132.28,132.22,71.0869]
[1765290077475,5.85814497,132.27,132.22,71.0869]
[1765290077668,6.8038,132.28,132.22,71.0869]
[1765290077978,5.86072477,132.27,132.23,6.8062]
[1765290078181,6.8033,132.3,132.23,6.8062]
[1765290078475,0.05381608,132.26,132.24,0.05446551]
[1765290078670,0.05595947,132.26,132.24,0.05446551]
[1765290086483,0.05595947,132.26,132.24,6.86016551]
[1765290086676,0.05595947,132.26,132.24,0.05446551]
[1765290087374,0.05595947,132.26,132.25,6.8054]
[1765290095985,0.05595947,132.26,132.24,6.86036551]
[1765290096185,0.05595947,132.26,132.24,0.05446551]
[1765290099290,6.18699477,132.25,132.24,0.05446551]
[1765290109004,6.18699477,132.25,132.24,6.86036551]
[1765290115508,0.05595947,132.26,132.25,6.8054]
[1765290116099,7.01826073,132.32,132.26,6.8047]
[1765290116301,11.81725775,132.31,132.26,6.8047]
[1765290116610,11.81725775,132.3,132.26,6.8047]
[1765290116802,6.08185712,132.29,132.27,6.8043]
[1765290117002,13.82006073,132.33,132.27,6.8043]
[1765290117198,0.05281466,132.31,132.29,0.05770713]
[1765290117398,11.81629665,132.3,132.29,0.05770713]
[1765290118301,6.08123068,132.3,132.29,0.05770713]
[1765290118707,0.05281466,132.31,132.29,0.05770713]
[1765290119106,5.89442486,132.3,132.29,0.05770713]
[1765290119307,0.05281466,132.31,132.29,0.05770713]
[1765290119495,5.89390094,132.3,132.29,0.05770713]
[1765290119699,11.62620996,132.3,132.29,0.05770713]
[1765290119895,13.14620996,132.3,132.24,6.8056]
[1765290120106,11.62620996,132.29,132.24,6.8056]
[1765290120401,5.89390094,132.28,132.24,6.8056]
[1765290120714,6.8028,132.3,132.24,6.8056]
[1765290120899,0.05259557,132.28,132.26,0.05643067]
[1765290121297,11.59164178,132.27,132.26,0.05643067]
[1765290121694,5.86004391,132.27,132.26,0.05643067]
[1765290122601,0.05259557,132.28,132.26,0.05643067]
[1765290126709,5.86558624,132.27,132.26,0.05643067]
[1765290127109,11.58943979,132.27,132.26,0.05643067]
[1765290133116,13.91710317,132.27,132.23,64.28]
[1765290133425,11.58943979,132.26,132.23,64.28]
[1765290133610,11.58943979,132.25,132.23,64.28]
[1765290133812,9.35763005,132.28,132.23,64.28]
[1765290134020,11.63493018,132.27,132.24,0.05115887]
[1765290134222,11.57978452,132.26,132.24,0.05115887]
[1765290134416,11.57978452,132.25,132.24,0.05115887]
[1765290140730,0.05514566,132.27,132.24,0.05115887]
[1765290142129,0.05514566,132.27,132.25,2.32766338]
[1765290143818,0.05514566,132.27,132.25,9.13306338]
[1765290144024,0.05514566,132.27,132.25,2.32766338]
[1765290146630,13.83226667,132.32,132.25,2.32766338]
[1765290146825,13.83226667,132.32,132.28,2.32766338]
[1765290146826,11.33756738,132.31,132.28,2.32766338]
[1765290147020,5.71831011,132.3,132.28,2.32766338]
[1765290147226,6.8023,132.32,132.28,2.32766338]
[1765290147534,11.33390411,132.31,132.28,2.32766338]
[1765290147734,5.71512825,132.3,132.28,2.38197472]
[1765290148029,0.05388065,132.31,132.28,2.38197472]
[1765290152727,0.05388065,132.31,132.3,2.32766338]
[1765290153639,6.8003,132.35,132.3,2.32766338]
[1765290153935,11.26624562,132.34,132.29,6.8033]
[1765290154131,9.12796338,132.35,132.29,6.8033]
[1765290154132,5.71018373,132.33,132.29,6.8033]
[1765290154341,6.7997,132.37,132.3,2.32766338]
[1765290154633,0.04929713,132.35,132.32,0.05332914]
[1765290157240,0.04929713,132.35,132.32,2.38099252]
[1765290157435,0.04929713,132.35,132.34,2.32766338]
[1765290157838,0.04929713,132.35,132.34,9.12846338]
[1765290158037,2.32766338,132.42,132.34,2.32766338]
[1765290158244,5.70373713,132.41,132.34,2.32766338]
[1765290158543,2.32766338,132.42,132.34,2.32766338]
[1765290158835,5.70376197,132.41,132.34,2.32766338]
[1765290159041,0.05531169,132.39,132.36,2.37813635]
[1765290159439,0.05531169,132.39,132.37,6.799]
[1765290159627,0.05531169,132.39,132.37,9.12666338]
[1765290160228,0.05531169,132.39,132.37,6.799]
[1765290160438,0.05531169,132.39,132.38,2.32766338]
[1765290161242,157.44046667,132.47,132.4,6.7975]
[1765290161243,13.82406667,132.47,132.4,6.7975]
[1765290161434,13.82406667,132.47,132.41,2.32766338]
[1765290161435,6.7941,132.47,132.41,2.32766338]
[1765290162332,0.04892798,132.45,132.43,0.04863589]
[1765290164436,2.32766338,132.44,132.43,0.04863589]
[1765290166239,0.04892798,132.45,132.43,0.04863589]
[1765290172843,2.37659136,132.45,132.43,0.04863589]
[1765290173038,0.04892798,132.45,132.43,0.04863589]
[1765290173237,2.32766338,132.44,132.43,0.04863589]
[1765290174741,9.12336338,132.44,132.36,9.12706338]
[1765290174938,2.32766338,132.42,132.36,6.7994]
[1765290175848,0.05454746,132.4,132.38,0.04781718]
[1765290176349,2.38221084,132.4,132.38,0.04781718]
[1765290181341,9.18021084,132.4,132.38,0.04781718]
[1765290182547,6.7987,132.38,132.29,2.32766338]
[1765290182735,2.32766338,132.37,132.29,2.32766338]
[1765290183542,0.05208068,132.34,132.32,0.05401949]
[1765290187646,2.32766338,132.33,132.32,0.05401949]
[1765290188855,9.51048498,132.33,132.24,2.32766338]
[1765290189052,2.32766338,132.3,132.24,2.32766338]
[1765290189849,0.05595336,132.28,132.26,0.05662517]
[1765290192458,0.05595336,132.28,132.26,6.86132517]
[1765290196563,5.66228143,132.34,132.26,3.63568711]
[1765290196861,6.8006,132.35,132.26,3.63568711]
[1765290197056,0.04842169,132.32,132.29,0.05356219]
[1765290198958,0.04842169,132.32,132.3,6.8028]
[1765290203965,64.24,132.38,132.29,0.05356219]
[1765290204171,64.24,132.38,132.28,173.70788711]
[1765290204459,9.03653758,132.4,132.32,6.8017]
[1765290204662,5.66384345,132.39,132.3,3.63568711]
[1765290204862,5.66384345,132.38,132.3,3.63568711]
[1765290205063,0.05676835,132.35,132.33,0.05052061]
[1765290205263,0.04973892,132.35,132.33,0.05052061]
[1765290206054,0.04973892,132.35,132.33,6.85182061]
[1765290206264,0.04973892,132.35,132.33,0.05052061]
[1765290207167,3.63568711,132.34,132.25,3.63568711]
[1765290208469,6.8013,132.33,132.27,6.8043]
[1765290208661,0.05452062,132.31,132.28,0.04825329]
[1765290212771,6.8033,132.29,132.23,64.24]
[1765290213868,0.05201063,132.27,132.25,0.04990167]
[1765290214067,0.05201063,132.27,132.17,119.5398]
[1765290214068,3.63568711,132.26,132.16,105.9295]
[1765290214869,6.8054,132.25,132.16,105.9295]
[1765290215077,0.0515986,132.22,132.19,0.05654538]
[1765290215372,0.0515986,132.22,132.19,6.86484538]
[1765290216066,0.0515986,132.22,132.2,6.8078]
[1765290217669,6.96400282,132.31,132.22,105.8862]
[1765290217875,5.66816059,132.3,132.23,3.63568711]
[1765290218073,5.46430981,132.32,132.23,3.63568711]
[1765290218272,5.67237782,132.31,132.23,3.63568711]
[1765290218473,13.76510282,132.34,132.26,6.8048]
[1765290218672,0.05202741,132.31,132.29,0.05031906]
[1765290220374,5.66692285,132.3,132.29,0.05031906]
[1765290220783,0.05202741,132.31,132.29,0.05031906]
[1765290224370,5.67704397,132.3,132.29,0.05031906]
[1765290225481,0.05202741,132.31,132.29,0.05031906]
[1765290227871,5.68456749,132.3,132.29,0.05031906]
[1765290231490,5.68456749,132.3,132.2,105.8988]
[1765290231691,5.68456749,132.29,132.2,115.54021377]
[1765290231891,5.68456749,132.28,132.2,115.54021377]
[1765290232089,6.96400282,132.31,132.2,115.54021377]
[1765290232285,11.15248046,132.3,132.2,115.54021377]
[1765290232490,0.05445648,132.26,132.24,0.05684076]
[1765290232683,6.8034,132.29,132.24,0.05684076]
[1765290232993,0.05073236,132.26,132.24,0.05684076]
[1765290240013,0.05073236,132.26,132.18,6.8088]
[1765290240014,5.68354757,132.25,132.18,6.8088]
[1765290240215,5.68280627,132.24,132.14,170.2262]
[1765290240408,5.68280627,132.23,132.14,170.2262]
[1765290240610,5.68106636,132.22,132.14,170.2262]
[1765290240803,3.64065333,132.23,132.14,170.2262]
[1765290241009,0.05757391,132.2,132.17,0.05014291]
[1765290241208,0.05757391,132.2,132.17,0.05767522]
[1765290241410,0.05757391,132.2,132.17,6.86697522]
[1765290244107,0.05757391,132.2,132.17,0.05767522]
[1765290252717,2.33087879,132.19,132.17,0.05767522]
[1765290253019,2.33087879,132.19,132.12,68.41373787]
[1765290253322,2.33087879,132.17,132.12,4.11373787]
[1765290253912,0.05758092,132.16,132.13,6.86711088]
[1765290255118,0.05758092,132.16,132.13,0.05561088]
[1765290256721,6.86768092,132.16,132.13,0.05561088]
[1765290256925,0.05758092,132.16,132.13,0.05561088]
[1765290268833,0.05758092,132.16,132.14,2.33087879]
[1765290269934,6.8106,132.15,132.13,0.05561088]
[1765290270535,6.8106,132.15,132.12,1.93275821]
[1765290270536,6.8116,132.13,132.12,1.93275821]
[1765290270833,2.33087879,132.12,132.05,2.33087879]
[1765290271247,6.8126,132.11,132.04,2.33087879]
[1765290271438,6.8126,132.11,132.02,1.31748315]
[1765290271630,0.05034931,132.08,132.05,0.05610519]
[1765290275335,0.05034931,132.08,132.05,2.38698398]
[1765290275931,0.05034931,132.08,132.05,0.05610519]
[1765290277542,2.3812281,132.08,132.05,0.05610519]
[1765290279228,0.05034931,132.08,132.05,0.05610519]
[1765290281329,0.05034931,132.08,132.05,2.38698398]
[1765290281736,0.05034931,132.08,132.05,0.05610519]
[1765290282046,2.3812281,132.08,132.05,0.05610519]
[1765290282247,0.05034931,132.08,132.05,0.05610519]
[1765290282447,9.1954281,132.08,132.05,0.05610519]
[1765290283146,6.8149,132.07,132.05,0.05610519]
[1765290284551,9.14577879,132.07,132.05,0.05610519]
[1765290284849,6.8149,132.07,132.05,0.05610519]
[1765290286649,9.14577879,132.07,132.05,0.05610519]
[1765290286945,0.05034931,132.08,132.05,0.05610519]
[1765290287150,2.3812281,132.08,132.05,0.05610519]
[1765290287451,0.05034931,132.08,132.05,0.05610519]
[1765290287954,0.05034931,132.08,132.05,2.38698398]
[1765290288252,0.05034931,132.08,132.06,6.8152]
[1765290288642,0.05034931,132.08,132.05,2.38698398]
[1765290288849,0.05034931,132.08,132.05,0.05610519]
[1765290289742,9.1954281,132.08,132.05,0.05610519]
[1765290289946,2.3812281,132.08,132.05,0.05610519]
[1765290290544,0.05034931,132.08,132.05,0.05610519]
[1765290291450,0.05034931,132.08,132.05,6.87160519]
[1765290292348,0.05034931,132.08,132.05,0.05610519]
[1765290292549,0.05034931,132.08,132.06,2.33087879]
[1765290292950,2.33087879,132.13,132.07,6.8147]
[1765290293357,2.33087879,132.13,132.06,2.33087879]
[1765290293556,9.14187879,132.15,132.08,2.33087879]
[1765290294063,0.05252347,132.13,132.1,0.05437183]
[1765290294452,2.38340226,132.13,132.1,0.05437183]
[1765290294652,0.05252347,132.13,132.1,0.05437183]
[1765290296464,6.8121,132.12,132.1,0.05437183]
[1765290297564,0.05252347,132.13,132.1,0.05437183]
[1765290298458,6.86412347,132.13,132.1,0.05437183]
[1765290299163,0.05252347,132.13,132.1,0.05437183]
[1765290301561,6.86412347,132.13,132.1,0.05437183]
[1765290301766,0.05252347,132.13,132.1,0.05437183]
[1765290302270,6.8126,132.11,132.1,0.05437183]
[1765290303071,78.37531223,132.11,132.1,0.05437183]
[1765290303370,177.53791223,132.11,131.99,1.31770764]
[1765290303669,5.68271223,132.1,131.99,1.31770764]
[1765290303859,170.3352,132.11,131.99,1.31770764]
[1765290304170,0.05652389,132.06,132.04,0.05402826]
[1765290304361,0.05447453,132.06,132.04,0.05402826]
[1765290306370,0.05447453,132.06,132.04,6.87012826]
[1765290306967,0.05447453,132.06,132.04,0.05402826]
[1765290309174,0.05447453,132.06,132.04,6.87022826]
[1765290309473,0.05447453,132.06,132.04,0.05402826]
[1765290311469,6.86977453,132.06,132.04,0.05402826]
[1765290311972,13.11844634,132.06,132.04,0.05402826]
[1765290312678,6.86977453,132.06,132.04,0.05402826]
[1765290314688,5.70217108,132.05,132.04,0.05402826]
[1765290314889,5.70217108,132.05,131.97,71.1595]
[1765290314890,6.8169,132.03,131.97,71.1595]
[1765290315791,0.05439066,132.01,131.99,0.03964816]
[1765290320093,6.87229066,132.01,131.99,0.03964816]
[1765290320793,6.819,131.99,131.89,106.1457]
[1765290321489,6.819,131.99,131.92,6.8223]
[1765290321689,0.05509772,131.97,131.92,6.8223]
[1765290322789,0.05509772,131.97,131.93,6.8218]
[1765290323093,0.05677479,131.96,131.93,6.8218]
[1765290323504,0.05677479,131.96,131.91,6.8224]
[1765290324294,0.05677479,131.96,131.88,64.38]
[1765290324494,0.04989723,131.93,131.88,170.5349]
[1765290324792,0.04923068,131.92,131.88,170.5349]
[1765290324994,0.05564026,131.91,131.84,106.187]
[1765290325290,0.05564026,131.91,131.81,106.2102]
[1765290325499,0.05715964,131.87,131.81,106.2102]
[1765290325992,71.35056444,131.98,131.87,106.1644]
[1765290326178,64.4,131.98,131.87,106.1644]
[1765290326382,6.8211,131.95,131.87,6.8249]
[1765290326981,0.0526304,131.92,131.9,0.05168634]
[1765290337604,0.0526304,131.92,131.9,6.87488634]
[1765290339095,0.0526304,131.92,131.9,0.05168634]
[1765290339597,6.8751304,131.92,131.9,0.05168634]
[1765290340703,0.0526304,131.92,131.9,0.05168634]
[1765290341506,6.8751304,131.92,131.9,0.05168634]
[1765290341710,0.0526304,131.92,131.9,0.05168634]
[1765290346515,6.8750304,131.92,131.9,0.05168634]
[1765290346715,10.52912713,131.92,131.9,0.05168634]
[1765290348504,6.8229,131.91,131.9,0.05168634]
[1765290348708,175.79722713,131.92,131.8,3.65409673]
[1765290348912,3.65409673,131.9,131.8,3.65409673]
[1765290349513,3.65409673,131.88,131.79,6.21968146]
[1765290349713,0.05638641,131.85,131.79,6.21968146]
[1765290349913,0.05638641,131.85,131.79,4.9]
[1765290350108,0.05638641,131.85,131.8,6.8285]
[1765290350310,3.65409673,131.84,131.75,4.16017036]
[1765290350515,0.05222382,131.81,131.75,10.99097036]
[1765290351011,0.05222382,131.81,131.75,4.16017036]
[1765290352416,0.05222382,131.81,131.75,10.99107036]
[1765290352813,0.05222382,131.81,131.75,4.16017036]
[1765290353710,0.05222382,131.81,131.75,10.99107036]
[1765290354321,0.05222382,131.81,131.75,4.16017036]
[1765290357125,0.05222382,131.81,131.75,10.99117036]
[1765290357418,0.05222382,131.81,131.75,4.16017036]
[1765290357922,0.05222382,131.81,131.76,106.2519]
[1765290358130,0.05222382,131.81,131.78,106.2381]
[1765290358427,5.65649763,131.89,131.79,106.2295]
[1765290358628,111.51618761,131.92,131.79,106.2295]
[1765290358831,5.65726608,131.91,131.82,6.8273]
[1765290359030,6.8227,131.92,131.82,6.8273]
[1765290359230,0.0491863,131.88,131.86,0.04876183]
[1765290359522,0.05602876,131.88,131.86,0.0503563]
[1765290372828,0.05602876,131.88,131.86,6.8757563]
[1765290373725,12.50706909,131.94,131.87,6.8247]
[1765290373927,6.26658645,131.97,131.85,170.6407]
[1765290374229,5.68625227,131.96,131.85,170.6407]
[1765290374431,5.68625227,131.95,131.85,170.6407]
[1765290374735,0.04815025,131.91,131.89,0.05799979]
[1765290374931,0.0516747,131.91,131.89,6.87664968]
[1765290375538,0.0516747,131.91,131.89,0.05284968]
[1765290380439,6.8746747,131.91,131.89,0.05284968]
[1765290381328,6.8241,131.89,131.8,6.26658645]
[1765290381546,6.8241,131.89,131.8,70.70658645]
[1765290382440,0.05118007,131.86,131.83,0.05057979]
[1765290385447,0.05118007,131.86,131.84,6.8265]
[1765290387042,0.05118007,131.86,131.83,0.05057979]
[1765290388949,0.05118007,131.86,131.83,6.87747979]
[1765290389150,0.05118007,131.86,131.83,0.05057979]
[1765290389845,6.8261,131.85,131.83,0.05057979]
[1765290390047,0.05118007,131.86,131.75,4.16017036]
[1765290390253,6.26658645,131.86,131.75,4.16017036]
[1765290390435,6.8265,131.85,131.76,106.2558]
[1765290391035,0.04864144,131.82,131.75,110.42017036]
[1765290391455,0.04864144,131.82,131.75,4.16017036]
[1765290391456,6.87634144,131.82,131.75,4.16017036]
[1765290391747,0.04864144,131.82,131.75,4.16017036]
[1765290392144,106.26024144,131.82,131.75,4.16017036]
[1765290393147,6.8293,131.79,131.75,4.16017036]
[1765290393358,0.0477563,131.78,131.75,4.16017036]
[1765290393954,107.8108563,131.78,131.75,1.54865608]
[1765290394658,6.8305,131.77,131.75,1.54865608]
[1765290395759,0.0477563,131.78,131.75,1.54865608]
[1765290396260,6.8303,131.77,131.75,1.54865608]
[1765290398555,106.2591,131.76,131.65,54.8677208]
[1765290398759,0.0515065,131.72,131.65,54.8677208]
[1765290400273,0.0515065,131.72,131.66,6.8358]
[1765290400459,6.26658645,131.69,131.58,106.4003]
[1765290400658,0.05484475,131.65,131.58,106.4003]
[1765290401063,0.05484475,131.65,131.6,6.8387]
[1765290401369,0.05484475,131.65,131.56,112.68008645]
[1765290401568,0.05375286,131.62,131.58,6.8397]
[1765290401870,0.05158629,131.61,131.58,6.8397]
[1765290402067,0.05396835,131.61,131.57,106.4072]
[1765290402270,6.26658645,131.69,131.6,6.8388]
[1765290402776,6.26658645,131.69,131.58,6.8397]
[1765290403164,0.04954963,131.65,131.62,0.04837015]
[1765290405264,6.8372,131.64,131.62,0.04837015]
[1765290405469,0.04954963,131.65,131.62,0.04837015]
[1765290406971,106.2852,131.73,131.62,0.04837015]
[1765290407278,176.5994559,131.74,131.61,106.3767]
[1765290407477,182.36696825,131.74,131.61,106.3767]
[1765290407666,117.84696825,131.74,131.61,106.3767]
[1765290407867,6.26658645,131.75,131.66,0.04987623]
[1765290407868,0.05407889,131.69,131.66,0.04987623]
[1765290408068,0.05494843,131.69,131.66,0.04961411]
[1765290409281,0.05494843,131.69,131.66,6.88541411]
[1765290410575,0.05494843,131.69,131.66,0.04961411]
[1765290417888,6.835,131.68,131.66,0.04961411]
[1765290418479,13.10158645,131.68,131.66,0.04961411]
[1765290419280,1.52,131.67,131.66,0.04961411]
[1765290419481,119.41535488,131.67,131.56,11.7]
[1765290419782,106.3318,131.67,131.56,11.7]
[1765290419979,106.3367,131.66,131.56,11.7]
[1765290420180,5.97725372,131.65,131.56,11.7]
[1765290420489,106.3367,131.66,131.59,0.05455153]
[1765290420490,0.05421891,131.62,131.59,0.05455153]
[1765290422081,0.05421891,131.62,131.6,6.8389]
[1765290422286,0.05421891,131.62,131.59,0.05455153]
[1765290422990,0.05421891,131.62,131.59,6.89395153]
[1765290423373,0.05421891,131.62,131.59,0.05455153]
[1765290424780,113.17831775,131.71,131.59,0.05455153]
[1765290424781,6.8347,131.69,131.59,0.05455153]
[1765290424986,119.4283042,131.73,131.59,112.65608645]
[1765290425296,117.80037403,131.72,131.59,112.65608645]
[1765290425488,18.34507403,131.71,131.6,106.3832]
[1765290425784,6.26658645,131.73,131.64,0.0535183]
[1765290425991,327.94720646,131.75,131.67,0.04841301]
[1765290426191,0.0537455,131.7,131.66,6.8357]
[1765290426592,0.0537455,131.7,131.67,0.05056566]
[1765290427694,0.0537455,131.7,131.67,6.88576566]
[1765290431088,5.76990102,131.74,131.68,64.52]
[1765290431288,6.8306,131.77,131.68,64.52]
[1765290431487,11.56252806,131.76,131.68,64.52]
[1765290431794,112.50288645,131.79,131.69,106.312]
[1765290431795,6.87631775,131.79,131.69,106.312]
[1765290432099,0.05478305,131.75,131.73,0.0516534]
[1765290432293,0.05396813,131.75,131.73,0.0516534]
[1765290433299,0.05396813,131.75,131.73,6.8837534]
[1765290433485,19.9709042,131.82,131.73,71.4037534]
[1765290433691,11.5391014,131.81,131.73,71.3521]
[1765290433992,11.5391014,131.8,131.73,71.3521]
[1765290434193,11.5391014,131.79,131.73,71.3521]
[1765290434394,13.70431775,131.82,131.73,71.3521]
[1765290434692,0.05404124,131.79,131.76,0.05292641]
[1765290438890,6.88334124,131.79,131.76,0.05292641]
[1765290439789,0.05404124,131.79,131.76,0.05292641]
[1765290440391,6.88334124,131.79,131.76,0.05292641]
[1765290445394,0.05404124,131.79,131.76,0.05292641]
[1765290448307,6.88324124,131.79,131.76,0.05292641]
[1765290449101,6.8297,131.78,131.76,0.05292641]
[1765290451508,0.05404124,131.79,131.76,0.05292641]
[1765290460904,0.05404124,131.79,131.76,6.88362641]
[1765290462410,0.05404124,131.79,131.76,0.05292641]
[1765290463310,6.88324124,131.79,131.76,0.05292641]
[1765290464312,0.05404124,131.79,131.76,0.05292641]
[1765290470220,0.05404124,131.79,131.76,6.88352641]
[1765290472713,0.05404124,131.79,131.76,0.05292641]
[1765290472915,6.8265,131.85,131.76,0.05292641]
[1765290473115,11.74933743,131.84,131.75,170.7408]
[1765290473325,11.74933743,131.83,131.75,170.7408]
[1765290473623,5.97667857,131.82,131.75,170.7408]
[1765290473930,0.04812522,131.8,131.77,0.05428772]
[1765290474114,0.04812522,131.8,131.77,0.05768441]
[1765290476116,0.04812522,131.8,131.77,6.88778441]
[1765290476619,0.04812522,131.8,131.77,71.36778441]
[1765290477020,0.04812522,131.8,131.77,6.88778441]
[1765290477432,0.04812522,131.8,131.77,71.36778441]
[1765290478125,0.04812522,131.8,131.77,6.88778441]
[1765290478624,0.04812522,131.8,131.77,71.36778441]
[1765290479828,0.04812522,131.8,131.77,6.88778441]
[1765290480128,0.04812522,131.8,131.77,0.05768441]
[1765290480328,15.26450425,131.79,131.67,359.66117978]
[1765290480538,10.49157978,131.77,131.68,64.46]
[1765290480826,11.60332447,131.76,131.68,64.46]
[1765290481128,11.60332447,131.75,131.68,64.46]
[1765290481425,3.70918688,131.73,131.7,0.04914616]
[1765290481824,0.0480071,131.73,131.7,0.04914616]
[1765290482324,0.0480071,131.73,131.7,6.88284616]
[1765290483124,0.0480071,131.73,131.71,6.8329]
[1765290483332,0.0480071,131.73,131.71,71.3129]
[1765290484220,16.67576781,131.81,131.71,64.48]
[1765290484422,11.53493869,131.8,131.71,64.48]
[1765290484629,81.17576781,131.84,131.72,106.285]
[1765290484933,11.53577245,131.83,131.73,106.2746]
[1765290485130,11.53577245,131.82,131.74,106.2717]
[1765290485333,0.05366647,131.79,131.77,0.04913649]
[1765290485524,6.95285493,131.87,131.77,64.52913649]
[1765290485725,11.53793498,131.86,131.77,64.48]
[1765290485928,11.53793498,131.85,131.77,64.48]
[1765290486135,11.53793498,131.84,131.77,71.3101]
[1765290486335,6.8265,131.85,131.77,71.3101]
[1765290486535,0.05401725,131.82,131.8,0.05290285]
[1765290491429,11.53537539,131.86,131.8,6.88130285]
[1765290491634,6.95285493,131.89,131.8,6.8284]
[1765290491826,11.53685083,131.88,131.76,170.7331]
[1765290492029,18.36205083,131.87,131.79,6.829]
[1765290492336,11.53685083,131.86,131.79,6.829]
[1765290492539,0.05075817,131.84,131.82,0.05448234]
[1765290504637,0.05075817,131.84,131.82,2.3958928]
[1765290504844,0.05075817,131.84,131.82,9.2234928]
[1765290506349,9.16551046,131.89,131.82,9.2234928]
[1765290506650,9.16551046,131.89,131.82,9.16901046]
[1765290507037,9.16551046,131.89,131.78,106.2371]
[1765290507038,2.34141046,131.85,131.78,2.34141046]
[1765290507239,2.34141046,131.85,131.8,0.04832744]
[1765290507439,0.05054917,131.83,131.8,0.04832744]
[1765290507634,0.05054917,131.83,131.8,2.3897379]
[1765290508140,0.05054917,131.83,131.81,6.8281]
[1765290510850,0.05054917,131.83,131.82,6.8276]
[1765290511846,2.34141046,131.9,131.83,2.34141046]
[1765290512737,0.05495965,131.88,131.85,0.04836887]
[1765290513143,0.05495965,131.88,131.85,6.87436887]
[1765290515452,0.05495965,131.88,131.85,0.04836887]
[1765290516351,2.39637011,131.88,131.85,0.04836887]
[1765290517345,0.05495965,131.88,131.85,0.04836887]
[1765290518251,2.34141046,131.87,131.85,0.04836887]
[1765290523358,2.39637011,131.88,131.85,0.04836887]
[1765290524362,0.05495965,131.88,131.85,0.04836887]
[1765290532659,0.05495965,131.88,131.86,2.34141046]
[1765290532868,2.34141046,131.93,131.86,2.34141046]
[1765290533071,11.52995987,131.92,131.86,2.34141046]
[1765290533364,2.34141046,131.95,131.88,2.34141046]
[1765290533673,11.52812665,131.94,131.88,9.16591046]
[1765290533855,0.05038812,131.92,131.9,0.05135983]
[1765290534261,73.7453371,131.97,131.9,2.39277029]
[1765290534262,6.8202,131.97,131.9,2.39277029]
[1765290534459,11.52680234,131.96,131.9,2.39277029]
[1765290534658,6.8202,131.97,131.9,2.39277029]
[1765290534966,11.52756644,131.96,131.9,2.39277029]
[1765290535163,2.34141046,131.98,131.9,2.39277029]
[1765290535353,13.81359315,131.99,131.86,184.2652]
[1765290535354,0.04791903,131.94,131.93,0.04913166]
[1765290535553,0.05144929,131.95,131.93,0.04913166]
[1765290537156,6.87234929,131.95,131.93,0.04913166]
[1765290537574,2.34141046,131.94,131.93,0.04913166]
[1765290537959,15.37327321,131.94,131.86,2.34141046]
[1765290538159,106.0976,131.96,131.86,2.34141046]
[1765290538160,2.34141046,131.91,131.86,2.34141046]
[1765290538365,2.34141046,131.91,131.85,6.8256]
[1765290538560,2.34141046,131.91,131.84,2.34141046]
[1765290539062,0.05226855,131.89,131.86,0.05447256]
[1765290539457,2.39367901,131.89,131.86,0.05447256]
[1765290540667,0.05226855,131.89,131.86,0.05447256]
[1765290550581,2.34141046,131.87,131.86,0.05447256]
[1765290552867,6.87626855,131.89,131.86,0.05447256]
[1765290553066,8.17872506,131.88,131.86,0.05447256]
[1765290553373,2.34141046,131.88,131.86,0.05447256]
[1765290553776,0.05226855,131.89,131.86,0.05447256]
[1765290556077,0.05226855,131.89,131.86,6.87947256]
[1765290558378,0.05226855,131.89,131.87,6.825]
[1765290559279,10.4774851,131.94,131.88,6.8245]
[1765290559475,11.58741361,131.93,131.86,68.0760851]
[1765290559677,10.65037825,131.96,131.86,68.0760851]
[1765290559678,3.6560851,131.96,131.86,68.0760851]
[1765290559983,11.59017861,131.95,131.86,68.0760851]
[1765290560177,11.59017861,131.94,131.86,68.0760851]
[1765290560384,0.05516053,131.91,131.89,0.05622559]
[1765290560573,0.05292967,131.91,131.89,6.88012559]
[1765290561179,3.6560851,131.96,131.9,6.8234]
[1765290561485,6.99429315,131.99,131.9,3.6560851]
[1765290561687,11.58595027,131.98,131.92,3.6560851]
[1765290561991,6.99429315,132.01,131.92,3.6560851]
[1765290562281,0.05767596,131.98,131.95,0.05539366]
[1765290565785,0.05767596,131.98,131.95,6.87619366]
[1765290566792,0.05767596,131.98,131.95,0.05539366]
[1765290570491,3.71376106,131.98,131.95,0.05539366]
[1765290570886,10.53316106,131.98,131.95,0.05539366]
[1765290571591,0.05767596,131.98,131.95,0.05539366]
[1765290572893,3.71376106,131.98,131.95,0.05539366]
[1765290573095,6.8199,131.97,131.95,0.05539366]
[1765290574792,3.71376106,131.98,131.95,0.05539366]
[1765290574998,0.05767596,131.98,131.95,0.05539366]
[1765290578513,0.05767596,131.98,131.97,6.8198]
[1765290579606,3.6560851,132.03,131.97,6.8198]
[1765290579914,64.42,132.06,131.97,6.8198]
[1765290580106,3.6560851,132.04,131.97,6.8198]
[1765290580509,0.0480196,132.02,131.99,0.05544376]
[1765290582310,0.0480196,132.02,132.0,6.8182]
[1765290582515,15.17916333,132.09,132.0,3.6560851]
[1765290582717,3.6560851,132.09,132.0,3.6560851]